fUSD/lending_fUSD_20240427
["ID","MTS","AMOUNT","RATE_DAILY","PERIOD"]
[323747732,1714231849978,-793.69,0.00011232,2]
[323747733,1714231849987,-1100.93,0.00011232,2]
[323747734,1714231849996,-500.0,0.00011232,2]
[323747735,1714231850006,-648.13,0.00011232,2]
[323747736,1714231850016,-500.0,0.00011232,2]
[323747737,1714231850026,-1573.84,0.00011232,2]
[323747738,1714231850038,-500.0,0.00011232,2]
[323747739,1714231850047,-983.88,0.00011232,2]
[323747740,1714231850056,-500.0,0.00011232,2]
[323747741,1714231850067,-1583.51,0.00011232,2]
[323747742,1714231850076,-500.0,0.00011232,2]
[323747743,1714231850086,-500.0,0.00011232,2]
[323747744,1714231850095,-500.0,0.00011232,2]
[323747745,1714231850104,-1147.18,0.00011232,2]
[323747746,1714231850115,-687.92,0.00011232,2]
[323747747,1714231850124,-500.0,0.00011232,2]
[323747748,1714231850133,-1701.06,0.00011232,2]
[323747749,1714231850143,-500.0,0.00011232,2]
[323747750,1714231850152,-500.0,0.00011232,2]
[323747751,1714231850162,-5445.98372405,0.00011232,2]
[323747752,1714231850175,-5925.50627595,0.00011232,2]
[323747753,1714231850184,-1288.98,0.00011232,2]
[323747754,1714231850194,-1015.52,0.00011232,2]
[323747755,1714231850204,-2488.35,0.00011232,2]
[323747756,1714231850213,-1361.02,0.00011232,2]
[323747757,1714231850223,-500.0,0.00011232,2]
[323747758,1714231850233,-541.91,0.00011232,2]
[323747759,1714231850242,-4001.8,0.00011232,2]
[323747760,1714231850252,-703.68,0.00011232,2]
[323747761,1714231850261,-500.0,0.00011232,2]
[323747762,1714231850271,-778.99,0.00011232,2]
[323747763,1714231850280,-2664.37,0.00011232,2]
[323747764,1714231850290,-606.02,0.00011232,2]
[323747765,1714231850299,-500.0,0.00011232,2]
[323747766,1714231850309,-17885.65755822,0.00011232,2]
[323747767,1714231867387,1618.28865604,0.00010069,2]
[323747768,1714231871260,191.86683549,0.00010109,2]
[323747769,1714231903242,422.87261508,0.00010109,2]
[323747770,1714231919245,422.87261508,0.00010109,2]
[323747771,1714231943245,252.23013167,9.098e-05,2]
[323747772,1714232099620,279.62155449,0.00010399,2]
[323747773,1714232099641,1384.77276051,0.00010399,2]
[323747774,1714232153730,961.59,0.00010239,2]
[323747775,1714232218922,340.71,0.00010244,2]
[323747776,1714232251319,1312.92723949,0.00010446,2]
[323747777,1714232345082,175.11,8.219e-05,2]
[323747778,1714232848060,166.35,8.219e-05,2]
[323747799,1714233032204,-284.1080006,9.737e-05,2]
[323747800,1714233032216,-240.09057803,9.737e-05,2]
[323747801,1714233032227,-1903.36580758,9.737e-05,2]
[323747802,1714233032314,-2430.61551651,9.737e-05,2]
[323747803,1714233032323,-524.19857863,9.738e-05,2]
[323747804,1714233032333,-2063.26,9.74e-05,2]
[323747805,1714233032343,-627.25,9.786e-05,2]
[323747806,1714233032352,-439.73,9.919e-05,2]
[323747807,1714233032361,-1354.66172401,9.92e-05,2]
[323747808,1714233032371,-640.72,9.922e-05,2]
[323747809,1714233032383,-198.99,0.00010197,2]
[323747810,1714233032392,-151.21,0.00010233,2]
[323747811,1714233032401,-2125.33,0.00010233,2]
[323747812,1714233032410,-1573.65,0.00010233,2]
[323747813,1714233032421,-150.0,0.00010445,2]
[323747814,1714233032430,-1209.57921594,0.00010446,2]
[323747815,1714233032440,-166.35,0.00010466,2]
[323747816,1714233032450,-154.77,0.00010564,2]
[323747817,1714233032461,-521.81,0.00010564,2]
[323747818,1714233032471,-154.77,0.00010581,2]
[323747819,1714233032481,-154.77,0.00010599,2]
[323747820,1714233032490,-500.0,0.000106,3]
[323747821,1714233032500,-154.77,0.00010616,2]
[323747822,1714233032509,-316.0,0.0001063,10]
[323747823,1714233032518,-1000.0,0.000107,3]
[323747824,1714233032527,-151.21,0.00010767,2]
[323747825,1714233032536,-1600.0,0.000108,3]
[323747826,1714233032546,-158.94012344,0.00010848,2]
[323747827,1714233032555,-158.94012344,0.00010848,2]
[323747828,1714233032565,-5299.9999176,0.00010857,2]
[323747829,1714233032574,-179.34240057,0.00010858,2]
[323747830,1714233032583,-201.41139642,0.00010858,2]
[323747831,1714233032593,-370.0423,0.00010858,2]
[323747832,1714233032603,-1000.0,0.00010858,2]
[323747833,1714233032612,-10000.0,0.00010858,2]
[323747834,1714233032621,-28000.0,0.00010858,2]
[323747835,1714233032631,-263.2518,0.00010858,2]
[323747836,1714233032640,-40034.4948,0.00010858,2]
[323747837,1714233032650,-10375.8293,0.00010858,2]
[323747838,1714233032660,-158.94012344,0.0001089,2]
[323747839,1714233032669,-155.0,0.000109,2]
[323747840,1714233032678,-24680.5877423,0.000109,2]
[323747841,1714233032687,-179.34240057,0.000109,2]
[323747842,1714233032696,-2100.0,0.000109,3]
[323747843,1714233032705,-164.12115548,0.000109,2]
[323747844,1714233032714,-158.94012344,0.00010948,2]
[323747845,1714233032724,-158.94012344,0.00010948,2]
[323747846,1714233032735,-158.94012344,0.00010948,2]
[323747847,1714233032744,-158.94012344,0.00010948,2]
[323747848,1714233032753,-158.94012344,0.00010948,2]
[323747849,1714233032762,-158.94012344,0.00010948,2]
[323747850,1714233032772,-158.94012344,0.00010948,2]
[323747851,1714233032781,-1947.51945692,0.00010956,2]
[323747852,1714233032791,-507.71587374,0.00010958,2]
[323747853,1714233032800,-500.0,0.00010958,2]
[323747854,1714233032810,-500.0,0.00010958,2]
[323747855,1714233032819,-500.0,0.00010958,2]
[323747856,1714233032828,-500.0,0.00010958,2]
[323747857,1714233032838,-500.0,0.00010958,2]
[323747858,1714233032847,-500.18201714,0.00010958,2]
[323747859,1714233032856,-178.44368358,0.00010958,2]
[323747860,1714233032866,-500.0,0.00010958,2]
[323747861,1714233032875,-501.00675471,0.00010958,2]
[323747862,1714233032884,-643.23788602,0.00010958,2]
[323747863,1714233032893,-500.23423474,0.00010958,2]
[323747864,1714233032903,-500.0,0.00010958,2]
[323747865,1714233032912,-505.97603541,0.00010958,2]
[323747866,1714233032922,-614.16535835,0.00010958,2]
[323747867,1714233032931,-504.57982205,0.00010958,2]
[323747868,1714233032941,-503.01440242,0.00010958,2]
[323747869,1714233032950,-524.16128264,0.00010958,2]
[323747870,1714233032959,-504.28564768,0.00010958,2]
[323747871,1714233032969,-525.27921275,0.00010958,2]
[323747873,1714233032979,-503.5794823,0.00010958,2]
[323747875,1714233032988,-505.51405151,0.00010958,2]
[323747877,1714233032997,-475.71328431,0.00010958,2]
[323747879,1714233033006,-502.04446207,0.00010958,2]
[323747881,1714233033015,-517.34077941,0.00010958,2]
[323747883,1714233033024,-462.60224634,0.00010958,2]
[323747885,1714233033034,-500.0,0.00010958,2]
[323747887,1714233033043,-502.39886392,0.00010958,2]
[323747889,1714233033052,-504.43626577,0.00010958,2]
[323747890,1714233033061,-507.26613516,0.00010958,2]
[323747891,1714233033071,-505.84492601,0.00010958,2]
[323747892,1714233033080,-500.0,0.00010958,2]
[323747893,1714233033089,-502.69975571,0.00010958,2]
[323747894,1714233033098,-500.0,0.00010958,2]
[323747895,1714233033108,-500.0,0.00010958,2]
[323747896,1714233033117,-500.0,0.00010958,2]
[323747897,1714233033126,-501.05723727,0.00010958,2]
[323747898,1714233033135,-504.91991261,0.00010958,2]
[323747899,1714233033145,-503.56741281,0.00010958,2]
[323747900,1714233033154,-500.0,0.00010958,2]
[323747901,1714233033163,-502.5744298,0.00010958,2]
[323747902,1714233033172,-500.31506871,0.00010958,2]
[323747903,1714233033182,-505.22602853,0.00010958,2]
[323747904,1714233033193,-506.19542674,0.00010958,2]
[323747905,1714233033202,-500.0,0.00010958,2]
[323747906,1714233033211,-500.0,0.00010958,2]
[323747907,1714233033221,-646.56,0.00010958,2]
[323747908,1714233033230,-520.71285899,0.00010958,2]
[323747909,1714233033239,-500.0,0.00010958,2]
[323747910,1714233033249,-589.31,0.00010958,2]
[323747911,1714233033259,-500.0,0.00010958,2]
[323747912,1714233033269,-500.0,0.00010958,2]
[323747913,1714233033278,-394.08681879,0.00010958,2]
[323747914,1714233033288,-500.0,0.00010958,2]
[323747915,1714233033298,-500.0,0.00010958,2]
[323747916,1714233033307,-500.0,0.00010958,2]
[323747917,1714233033317,-500.0,0.00010958,2]
[323747918,1714233033326,-503.3000112,0.00010958,2]
[323747919,1714233033336,-500.0,0.00010958,2]
[323747920,1714233033346,-317.47758969,0.00010958,2]
[323747921,1714233033355,-502.45791786,0.00010958,2]
[323747922,1714233033364,-500.0,0.00010958,2]
[323747923,1714233033374,-500.0,0.00010958,2]
[323747924,1714233033383,-500.0,0.00010958,2]
[323747925,1714233033393,-500.0,0.00010958,2]
[323747926,1714233033402,-500.0,0.00010958,2]
[323747927,1714233033411,-500.0,0.00010958,2]
[323747928,1714233033422,-500.0,0.00010958,2]
[323747929,1714233033431,-500.0,0.00010958,2]
[323747930,1714233033440,-500.0,0.00010958,2]
[323747931,1714233033450,-500.0,0.00010958,2]
[323747932,1714233033460,-500.0,0.00010958,2]
[323747933,1714233033469,-528.99641875,0.00010958,2]
[323747934,1714233033479,-500.0,0.00010958,2]
[323747935,1714233033489,-500.0,0.00010958,2]
[323747936,1714233033498,-500.0,0.00010958,2]
[323747937,1714233033507,-500.0,0.00010958,2]
[323747938,1714233033516,-508.37845454,0.00010958,2]
[323747939,1714233033525,-500.0,0.00010958,2]
[323747940,1714233033535,-500.0,0.00010958,2]
[323747941,1714233033545,-543.32,0.00010958,2]
[323747942,1714233033553,-500.0,0.00010958,2]
[323747943,1714233033562,-504.14683265,0.00010958,2]
[323747944,1714233033571,-500.0,0.00010958,2]
[323747945,1714233033581,-500.0,0.00010958,2]
[323747946,1714233033590,-500.0,0.00010958,2]
[323747947,1714233033599,-500.0,0.00010958,2]
[323747948,1714233033609,-500.0,0.00010958,2]
[323747949,1714233033618,-500.0,0.00010958,2]
[323747950,1714233033627,-500.0,0.00010958,2]
[323747951,1714233033636,-414.98767343,0.00010958,2]
[323747952,1714233033646,-500.0,0.00010958,2]
[323747953,1714233033655,-500.0,0.00010958,2]
[323747954,1714233033665,-500.0,0.00010958,2]
[323747955,1714233033674,-500.86929419,0.00010958,2]
[323747956,1714233033683,-500.0,0.00010958,2]
[323747957,1714233033693,-500.0,0.00010958,2]
[323747958,1714233033702,-500.0,0.00010958,2]
[323747959,1714233033710,-500.0,0.00010958,2]
[323747960,1714233033720,-500.0,0.00010958,2]
[323747961,1714233033730,-492.49653645,0.00010958,2]
[323747962,1714233033739,-500.0,0.00010958,2]
[323747963,1714233033748,-500.71700286,0.00010958,2]
[323747964,1714233033757,-509.95649053,0.00010958,2]
[323747965,1714233033766,-500.0,0.00010958,2]
[323747966,1714233033775,-500.0,0.00010958,2]
[323747967,1714233033783,-500.0,0.00010958,2]
[323747968,1714233033793,-608.25352296,0.00010958,2]
[323747969,1714233033802,-500.0,0.00010958,2]
[323747970,1714233033811,-434.1,0.00010958,2]
[323747971,1714233033820,-500.0,0.00010958,2]
[323747972,1714233033829,-608.1723287,0.00010958,2]
[323747973,1714233033838,-500.0,0.00010958,2]
[323747974,1714233033847,-500.0,0.00010958,2]
[323747975,1714233033857,-500.0,0.00010958,2]
[323747976,1714233033866,-504.74956021,0.00010958,2]
[323747977,1714233033875,-500.0,0.00010958,2]
[323747978,1714233033884,-500.0,0.00010958,2]
[323747979,1714233033893,-500.0,0.00010958,2]
[323747980,1714233033902,-500.0,0.00010958,2]
[323747981,1714233033911,-500.0,0.00010958,2]
[323747982,1714233033920,-540.24,0.00010958,2]
[323747983,1714233033929,-500.0,0.00010958,2]
[323747984,1714233033939,-500.0,0.00010958,2]
[323747985,1714233033949,-502.98081121,0.00010958,2]
[323747986,1714233033958,-500.0,0.00010958,2]
[323747987,1714233033966,-500.0,0.00010958,2]
[323747988,1714233033976,-500.0,0.00010958,2]
[323747989,1714233033986,-500.0,0.00010958,2]
[323747990,1714233033995,-500.0,0.00010958,2]
[323747991,1714233034004,-500.0,0.00010958,2]
[323747992,1714233034014,-500.0,0.00010958,2]
[323747993,1714233034023,-502.19285768,0.00010958,2]
[323747994,1714233034032,-500.0,0.00010958,2]
[323747995,1714233034042,-500.0,0.00010958,2]
[323747996,1714233034051,-500.0,0.00010958,2]
[323747997,1714233034060,-500.0,0.00010958,2]
[323747998,1714233034069,-500.0,0.00010958,2]
[323747999,1714233034078,-500.0,0.00010958,2]
[323748000,1714233034087,-500.0,0.00010958,2]
[323748001,1714233034096,-500.0,0.00010958,2]
[323748002,1714233034106,-500.0,0.00010958,2]
[323748003,1714233034115,-500.0,0.00010958,2]
[323748004,1714233034124,-500.0,0.00010958,2]
[323748005,1714233034134,-507.69790486,0.00010958,2]
[323748006,1714233034143,-500.0,0.00010958,2]
[323748007,1714233034153,-500.0,0.00010958,2]
[323748008,1714233034163,-500.0,0.00010958,2]
[323748009,1714233034172,-500.0,0.00010958,2]
[323748010,1714233034181,-568.50832886,0.00010958,2]
[323748011,1714233034190,-502.13855774,0.00010958,2]
[323748012,1714233034199,-500.0,0.00010958,2]
[323748013,1714233034208,-500.0,0.00010958,2]
[323748014,1714233034217,-502.83817987,0.00010958,2]
[323748015,1714233034227,-500.0,0.00010958,2]
[323748016,1714233034238,-500.0,0.00010958,2]
[323748017,1714233034247,-502.55950854,0.00010958,2]
[323748018,1714233034256,-500.0,0.00010958,2]
[323748019,1714233034265,-500.0,0.00010958,2]
[323748020,1714233034275,-500.0,0.00010958,2]
[323748021,1714233034285,-500.0,0.00010958,2]
[323748022,1714233034294,-500.0,0.00010958,2]
[323748023,1714233034303,-503.84219549,0.00010958,2]
[323748024,1714233034312,-504.06602325,0.00010958,2]
[323748025,1714233034321,-500.0,0.00010958,2]
[323748026,1714233034331,-501.18122491,0.00010958,2]
[323748027,1714233034340,-500.0,0.00010958,2]
[323748028,1714233034350,-500.0,0.00010958,2]
[323748029,1714233034359,-500.0,0.00010958,2]
[323748030,1714233034368,-500.0,0.00010958,2]
[323748031,1714233034380,-500.0,0.00010958,2]
[323748032,1714233034389,-505.4215157,0.00010958,2]
[323748033,1714233034399,-507.86894762,0.00010958,2]
[323748034,1714233034408,-500.0,0.00010958,2]
[323748035,1714233034419,-500.0,0.00010958,2]
[323748036,1714233034599,-500.0,0.00010958,2]
[323748037,1714233034608,-500.0,0.00010958,2]
[323748038,1714233034618,-500.0,0.00010958,2]
[323748039,1714233034627,-500.0,0.00010958,2]
[323748040,1714233034636,-500.0,0.00010958,2]
[323748041,1714233034646,-500.0,0.00010958,2]
[323748042,1714233034655,-500.0,0.00010958,2]
[323748043,1714233034664,-500.0,0.00010958,2]
[323748044,1714233034674,-500.0,0.00010958,2]
[323748045,1714233034683,-500.0,0.00010958,2]
[323748046,1714233034692,-504.07335846,0.00010958,2]
[323748047,1714233034702,-500.0,0.00010958,2]
[323748048,1714233034711,-500.0,0.00010958,2]
[323748049,1714233034720,-500.0,0.00010958,2]
[323748050,1714233034730,-500.0,0.00010958,2]
[323748051,1714233034739,-500.0,0.00010958,2]
[323748052,1714233034748,-500.0,0.00010958,2]
[323748053,1714233034758,-506.30652378,0.00010958,2]
[323748054,1714233034767,-174.02311252,0.00010958,2]
[323748055,1714233034776,-500.0,0.00010958,2]
[323748056,1714233034785,-500.0,0.00010958,2]
[323748057,1714233034795,-591.39459924,0.00010958,2]
[323748058,1714233034805,-501.76753678,0.00010958,2]
[323748059,1714233034814,-500.0,0.00010958,2]
[323748060,1714233034823,-500.0,0.00010958,2]
[323748061,1714233034833,-606.30098265,0.00010958,2]
[323748062,1714233034843,-500.0,0.00010958,2]
[323748063,1714233034853,-500.0,0.00010958,2]
[323748064,1714233034862,-195.29893248,0.00010958,2]
[323748065,1714233034871,-511.03748332,0.00010958,2]
[323748066,1714233034880,-500.0,0.00010958,2]
[323748067,1714233034889,-502.78950437,0.00010958,2]
[323748068,1714233034899,-500.0,0.00010958,2]
[323748069,1714233034908,-500.0,0.00010958,2]
[323748070,1714233034918,-508.0393816,0.00010958,2]
[323748071,1714233034927,-500.0,0.00010958,2]
[323748072,1714233034937,-500.0,0.00010958,2]
[323748073,1714233034946,-500.0,0.00010958,2]
[323748074,1714233034955,-500.0,0.00010958,2]
[323748075,1714233034964,-555.01436582,0.00010958,2]
[323748076,1714233034974,-500.0,0.00010958,2]
[323748077,1714233034984,-500.0,0.00010958,2]
[323748078,1714233034992,-500.0,0.00010958,2]
[323748079,1714233035002,-503.54525845,0.00010958,2]
[323748080,1714233035010,-500.0,0.00010958,2]
[323748081,1714233035020,-500.0,0.00010958,2]
[323748082,1714233035029,-500.0,0.00010958,2]
[323748083,1714233035039,-500.0,0.00010958,2]
[323748084,1714233035048,-500.0,0.00010958,2]
[323748085,1714233035058,-500.0,0.00010958,2]
[323748086,1714233035068,-500.0,0.00010958,2]
[323748087,1714233035078,-500.0,0.00010958,2]
[323748088,1714233035088,-500.0,0.00010958,2]
[323748089,1714233035097,-500.0,0.00010958,2]
[323748090,1714233035106,-501.33218482,0.00010958,2]
[323748091,1714233035116,-500.0,0.00010958,2]
[323748092,1714233035126,-500.0,0.00010958,2]
[323748093,1714233035135,-500.0,0.00010958,2]
[323748094,1714233035144,-500.0,0.00010958,2]
[323748095,1714233035154,-500.0,0.00010958,2]
[323748096,1714233035163,-500.0,0.00010958,2]
[323748097,1714233035173,-567.14021432,0.00010958,2]
[323748098,1714233035182,-500.0,0.00010958,2]
[323748099,1714233035192,-500.0,0.00010958,2]
[323748100,1714233035201,-500.0,0.00010958,2]
[323748101,1714233035211,-500.0,0.00010958,2]
[323748102,1714233035221,-500.0,0.00010958,2]
[323748103,1714233035230,-500.0,0.00010958,2]
[323748104,1714233035240,-156.5706874,0.00010958,2]
[323748105,1714233035250,-500.0,0.00010958,2]
[323748106,1714233035260,-500.0,0.00010958,2]
[323748107,1714233035269,-500.0,0.00010958,2]
[323748108,1714233035279,-500.0,0.00010958,2]
[323748109,1714233035288,-500.0,0.00010958,2]
[323748110,1714233035298,-500.0,0.00010958,2]
[323748111,1714233035307,-500.0,0.00010958,2]
[323748112,1714233035316,-500.0,0.00010958,2]
[323748113,1714233035326,-500.50499036,0.00010958,2]
[323748114,1714233035335,-500.0,0.00010958,2]
[323748115,1714233035344,-500.0,0.00010958,2]
[323748116,1714233035354,-500.0,0.00010958,2]
[323748117,1714233035363,-500.0,0.00010958,2]
[323748118,1714233035375,-500.0,0.00010958,2]
[323748119,1714233035390,-503.01953561,0.00010958,2]
[323748120,1714233035400,-500.0,0.00010958,2]
[323748121,1714233035409,-500.0,0.00010958,2]
[323748122,1714233035420,-500.0,0.00010958,2]
[323748123,1714233035429,-500.0,0.00010958,2]
[323748124,1714233035440,-500.0,0.00010958,2]
[323748125,1714233035449,-500.0,0.00010958,2]
[323748126,1714233035461,-606.37626311,0.00010958,2]
[323748127,1714233035471,-500.0,0.00010958,2]
[323748128,1714233035481,-500.0,0.00010958,2]
[323748129,1714233035491,-500.0,0.00010958,2]
[323748130,1714233035500,-500.0,0.00010958,2]
[323748131,1714233035510,-500.0,0.00010958,2]
[323748132,1714233035520,-500.0,0.00010958,2]
[323748133,1714233035529,-500.0,0.00010958,2]
[323748134,1714233035539,-500.0,0.00010958,2]
[323748135,1714233035549,-500.0,0.00010958,2]
[323748136,1714233035558,-500.0,0.00010958,2]
[323748137,1714233035568,-500.0,0.00010958,2]
[323748138,1714233035577,-304.39240682,0.00010958,2]
[323748139,1714233035586,-502.00000382,0.00010958,2]
[323748140,1714233035596,-282.85651105,0.00010958,2]
[323748141,1714233035605,-500.0,0.00010958,2]
[323748142,1714233035614,-500.0,0.00010958,2]
[323748143,1714233035624,-505.24948911,0.00010958,2]
[323748144,1714233035633,-501.3114509,0.00010958,2]
[323748145,1714233035641,-500.0,0.00010958,2]
[323748146,1714233035651,-500.0,0.00010958,2]
[323748147,1714233035660,-500.0,0.00010958,2]
[323748148,1714233035669,-500.0,0.00010958,2]
[323748149,1714233035678,-500.0,0.00010958,2]
[323748150,1714233035687,-500.0,0.00010958,2]
[323748151,1714233035696,-500.0,0.00010958,2]
[323748152,1714233035706,-500.0,0.00010958,2]
[323748153,1714233035715,-617.33,0.00010958,2]
[323748154,1714233035725,-501.82650526,0.00010958,2]
[323748155,1714233035734,-512.83,0.00010958,2]
[323748156,1714233035744,-546.5317808,0.00010958,2]
[323748157,1714233035753,-555.07,0.00010958,2]
[323748158,1714233035763,-500.0,0.00010958,2]
[323748159,1714233035772,-500.0,0.00010958,2]
[323748160,1714233035782,-500.0,0.00010958,2]
[323748161,1714233035791,-501.24780732,0.00010958,2]
[323748162,1714233035800,-501.92822339,0.00010958,2]
[323748163,1714233035810,-500.0,0.00010958,2]
[323748164,1714233035819,-501.05805814,0.00010958,2]
[323748165,1714233035829,-500.0,0.00010958,2]
[323748166,1714233035839,-500.0,0.00010958,2]
[323748167,1714233035848,-500.0,0.00010958,2]
[323748168,1714233035857,-500.0,0.00010958,2]
[323748169,1714233035867,-500.0,0.00010958,2]
[323748170,1714233035876,-503.42986149,0.00010958,2]
[323748171,1714233035886,-500.0,0.00010958,2]
[323748172,1714233035895,-500.0,0.00010958,2]
[323748173,1714233035905,-502.0203779,0.00010958,2]
[323748174,1714233035915,-500.0,0.00010958,2]
[323748175,1714233035924,-500.0,0.00010958,2]
[323748176,1714233035933,-503.87608471,0.00010958,2]
[323748177,1714233035942,-500.0,0.00010958,2]
[323748178,1714233035956,-1070.26,0.00010958,2]
[323748179,1714233035972,-500.0,0.00010958,2]
[323748180,1714233035987,-505.07385239,0.00010958,2]
[323748181,1714233035999,-500.0,0.00010958,2]
[323748182,1714233036013,-500.0,0.00010958,2]
[323748183,1714233036027,-500.0,0.00010958,2]
[323748184,1714233036042,-498.45208783,0.00010958,2]
[323748185,1714233036056,-500.0,0.00010958,2]
[323748186,1714233036070,-500.0,0.00010958,2]
[323748187,1714233036083,-500.0,0.00010958,2]
[323748188,1714233036096,-500.7839406,0.00010958,2]
[323748189,1714233036110,-505.82529931,0.00010958,2]
[323748190,1714233036123,-500.0,0.00010958,2]
[323748191,1714233036138,-502.29106469,0.00010958,2]
[323748192,1714233036150,-500.0,0.00010958,2]
[323748193,1714233036163,-508.15082364,0.00010958,2]
[323748194,1714233036178,-500.0,0.00010958,2]
[323748195,1714233036194,-500.0,0.00010958,2]
[323748196,1714233036207,-500.0,0.00010958,2]
[323748197,1714233036220,-688.1,0.00010958,2]
[323748198,1714233036233,-500.0,0.00010958,2]
[323748199,1714233036246,-500.0,0.00010958,2]
[323748200,1714233036261,-500.0,0.00010958,2]
[323748201,1714233036276,-500.0,0.00010958,2]
[323748202,1714233036291,-501.8563337,0.00010958,2]
[323748203,1714233036303,-500.0,0.00010958,2]
[323748204,1714233036314,-500.8718557,0.00010958,2]
[323748205,1714233036326,-500.0,0.00010958,2]
[323748206,1714233036340,-500.0,0.00010958,2]
[323748207,1714233036352,-500.0,0.00010958,2]
[323748208,1714233036367,-500.0,0.00010958,2]
[323748209,1714233036381,-500.0,0.00010958,2]
[323748210,1714233036393,-500.0,0.00010958,2]
[323748211,1714233036404,-500.0,0.00010958,2]
[323748212,1714233036416,-576.47,0.00010958,2]
[323748213,1714233036428,-500.0,0.00010958,2]
[323748214,1714233036441,-500.0,0.00010958,2]
[323748215,1714233036453,-500.0,0.00010958,2]
[323748216,1714233036466,-500.0,0.00010958,2]
[323748217,1714233036479,-500.0,0.00010958,2]
[323748218,1714233036493,-500.0,0.00010958,2]
[323748219,1714233036505,-500.0,0.00010958,2]
[323748220,1714233036522,-500.0,0.00010958,2]
[323748221,1714233036535,-500.0,0.00010958,2]
[323748222,1714233036547,-500.0,0.00010958,2]
[323748223,1714233036560,-500.68999086,0.00010958,2]
[323748224,1714233036572,-501.18,0.00010958,2]
[323748225,1714233036584,-502.58430358,0.00010958,2]
[323748226,1714233036597,-502.50973162,0.00010958,2]
[323748227,1714233036610,-505.16315795,0.00010958,2]
[323748228,1714233036622,-594.89,0.00010958,2]
[323748229,1714233036634,-520.03445635,0.00010958,2]
[323748230,1714233036646,-500.0,0.00010958,2]
[323748231,1714233036658,-500.0,0.00010958,2]
[323748232,1714233036670,-500.0,0.00010958,2]
[323748233,1714233036682,-518.34360477,0.00010958,2]
[323748234,1714233036695,-500.0,0.00010958,2]
[323748235,1714233036707,-500.0,0.00010958,2]
[323748236,1714233036719,-500.0,0.00010958,2]
[323748237,1714233036731,-500.0,0.00010958,2]
[323748238,1714233036744,-500.0,0.00010958,2]
[323748239,1714233036756,-500.0,0.00010958,2]
[323748240,1714233036768,-555.99,0.00010958,2]
[323748241,1714233036780,-485.65804925,0.00010958,2]
[323748242,1714233036792,-903.33,0.00010958,2]
[323748243,1714233036804,-500.0,0.00010958,2]
[323748244,1714233036816,-500.0,0.00010958,2]
[323748245,1714233036828,-488.8774634,0.00010958,2]
[323748246,1714233036840,-500.0,0.00010958,2]
[323748247,1714233036851,-500.0,0.00010958,2]
[323748248,1714233036863,-500.0,0.00010958,2]
[323748249,1714233036875,-500.0,0.00010958,2]
[323748250,1714233036887,-500.0,0.00010958,2]
[323748251,1714233036900,-501.809588,0.00010958,2]
[323748252,1714233036912,-500.0,0.00010958,2]
[323748253,1714233036923,-500.0,0.00010958,2]
[323748254,1714233036935,-500.0,0.00010958,2]
[323748255,1714233036947,-500.0,0.00010958,2]
[323748256,1714233036958,-500.0,0.00010958,2]
[323748257,1714233036971,-500.0,0.00010958,2]
[323748258,1714233036983,-500.0,0.00010958,2]
[323748259,1714233036995,-501.30575542,0.00010958,2]
[323748260,1714233037007,-500.0,0.00010958,2]